bitfinex-derivatives/quotes_SOLF0:USTF0_20241212
["timestamp","ask_amount","ask_price","bid_price","bid_amount"]
[1734008398076,2.1597,231.46,231.39,5.06115949]
[1734008398077,2.1597,231.45,231.41,8.12716538]
[1734008398782,2.1597,231.45,231.42,2.1599]
[1734008400183,2.1596,231.46,231.43,2.1599]
[1734008400977,2.46,231.51,231.43,8.12716538]
[1734008401383,2.46,231.51,231.45,8.12716538]
[1734008401674,8.12716538,231.54,231.47,8.12716538]
[1734008401874,10.58716538,231.54,231.47,8.12716538]
[1734008402882,8.12716538,231.54,231.47,8.12716538]
[1734008403081,2.46,231.54,231.51,2.1591]
[1734008403279,2.46,231.54,231.49,8.12716538]
[1734008403475,1.3363,231.62,231.51,8.12716538]
[1734008403676,2.1586,231.57,231.51,8.12716538]
[1734008403881,2.46,231.61,231.51,8.12716538]
[1734008403882,8.12716538,231.58,231.51,8.12716538]
[1734008404076,8.12716538,231.58,231.46,4.1216]
[1734008404077,8.12716538,231.54,231.46,12.24876538]
[1734008404384,10.58716538,231.54,231.46,12.24876538]
[1734008404581,10.58716538,231.54,231.48,2.1594]
[1734008404582,2.1591,231.52,231.48,2.1594]
[1734008404980,2.159,231.53,231.5,2.1592]
[1734008405285,2.46,231.54,231.48,8.12716538]
[1734008405684,2.1591,231.52,231.48,10.28646538]
[1734008405979,2.1591,231.52,231.46,1.3112]
[1734008405980,8.12716538,231.52,231.46,1.3112]
[1734008406380,2.1594,231.49,231.46,1.3112]
[1734008407081,2.1591,231.52,231.48,2.1594]
[1734008407281,2.1591,231.52,231.46,9.43836538]
[1734008407480,8.12716538,231.52,231.46,1.3112]
[1734008407886,8.12716538,231.5,231.42,8.12716538]
[1734008408181,8.12716538,231.48,231.42,8.12716538]
[1734008408387,2.1597,231.46,231.43,2.1598]
[1734008408981,2.1597,231.45,231.42,2.16]
[1734008409382,8.12716538,231.48,231.42,2.16]
[1734008409585,10.58716538,231.48,231.42,2.16]
[1734008410787,2.1596,231.46,231.42,2.16]
[1734008411582,10.58716538,231.48,231.37,0.16763]
[1734008411583,2.1603,231.39,231.37,0.16763]
[1734008412084,10.58716538,231.4,231.37,0.16763]
[1734008412482,8.12716538,231.38,231.37,0.16763]
[1734008412880,10.28756538,231.38,231.37,0.16763]
[1734008413687,2.1604,231.38,231.37,0.16763]
[1734008413993,2.38,231.39,231.37,0.16763]
[1734008415191,2.38,231.38,231.37,0.16763]
[1734008416885,8.12716538,231.42,231.37,0.16763]
[1734008417095,2.1598,231.45,231.39,2.1602]
[1734008417393,8.12716538,231.46,231.38,8.12716538]
[1734008417597,2.38,231.45,231.38,8.12716538]
[1734008418105,2.1598,231.44,231.39,2.1603]
[1734008418497,8.12716538,231.46,231.39,2.1603]
[1734008418498,2.38,231.43,231.39,2.1603]
[1734008419004,2.38,231.43,231.4,2.1602]
[1734008420099,2.38,231.43,231.3,1.3701]
[1734008420297,2.38,231.44,231.37,8.12716538]
[1734008420498,2.38,231.44,231.3,1.3701]
[1734008420701,2.1599,231.43,231.37,8.12716538]
[1734008420902,2.38,231.44,231.37,8.12716538]
[1734008421303,2.38,231.44,231.39,2.1603]
[1734008421304,4.5399,231.44,231.39,2.1603]
[1734008421806,2.1599,231.43,231.39,2.1603]
[1734008422700,4.5399,231.43,231.39,2.1603]
[1734008422901,2.16,231.42,231.39,2.1603]
[1734008423308,2.38,231.43,231.37,10.28756538]
[1734008423607,2.38,231.43,231.3,1.3701]
[1734008423608,10.50716538,231.43,231.35,8.12716538]
[1734008423798,10.50716538,231.43,231.38,2.1604]
[1734008424198,2.38,231.43,231.37,8.12716538]
[1734008424402,2.38,231.43,231.39,8.12716538]
[1734008424599,2.38,231.43,231.3,1.3701]
[1734008424903,2.16,231.42,231.38,2.1603]
[1734008425410,2.16,231.42,231.3,1.3701]
[1734008425609,2.1601,231.41,231.35,8.12716538]
[1734008426406,8.12716538,231.41,231.33,8.12716538]
[1734008426604,8.12716538,231.41,231.3,1.3701]
[1734008426803,10.50716538,231.43,231.34,8.12716538]
[1734008427407,10.50716538,231.43,231.36,8.12716538]
[1734008427606,2.38,231.43,231.36,8.12716538]
[1734008427806,8.12716538,231.46,231.38,10.28746538]
[1734008428102,8.12716538,231.46,231.38,8.12716538]
[1734008428103,2.38,231.45,231.38,8.12716538]
[1734008429007,2.38,231.46,231.4,8.12716538]
[1734008430311,8.12716538,231.45,231.36,8.12716538]
[1734008430519,8.12716538,231.43,231.36,10.28766538]
[1734008430709,8.12716538,231.43,231.36,2.1605]
[1734008431315,8.12716538,231.41,231.36,2.1605]
[1734008431513,4.5403,231.4,231.34,11.71146538]
[1734008431704,8.12716538,231.39,231.34,1.4237]
[1734008432109,8.12716538,231.39,231.31,8.12716538]
[1734008432709,2.1604,231.38,231.33,2.1608]
[1734008432907,2.1604,231.38,231.33,10.28796538]
[1734008433303,2.38,231.4,231.33,8.12716538]
[1734008433512,2.38,231.4,231.35,8.12716538]
[1734008433717,2.38,231.41,231.3,1.3701]
[1734008433912,2.38,231.41,231.35,8.12716538]
[1734008434413,4.5401,231.41,231.37,2.1604]
[1734008434620,4.5401,231.41,231.35,8.12716538]
[1734008434918,4.5401,231.41,231.36,2.1605]
[1734008435312,8.12716538,231.44,231.37,8.12716538]
[1734008435511,2.38,231.43,231.37,8.12716538]
[1734008435712,2.38,231.44,231.37,8.12716538]
[1734008435908,12.66706538,231.44,231.39,2.1602]
[1734008436207,8.12716538,231.42,231.35,8.12716538]
[1734008436413,2.1604,231.38,231.34,2.1606]
[1734008437013,2.1604,231.38,231.33,8.12716538]
[1734008437014,2.1605,231.37,231.33,10.28796538]
[1734008437612,2.38,231.39,231.33,10.28796538]
[1734008437820,2.38,231.39,231.31,8.12716538]
[1734008439320,2.38,231.39,231.3,1.3701]
[1734008439925,2.38,231.39,231.36,2.1605]
[1734008441420,4.5403,231.39,231.3,1.3701]
[1734008441726,2.38,231.39,231.3,1.3701]
[1734008441928,2.38,231.39,231.3,3.5311]
[1734008441929,2.1608,231.34,231.3,3.5311]
[1734008442220,2.38,231.39,231.3,1.3701]
[1734008442423,2.1606,231.36,231.31,2.1609]
[1734008442818,2.38,231.39,231.3,1.3701]
[1734008443017,2.1606,231.36,231.32,2.1608]
[1734008443426,2.38,231.39,231.3,1.3701]
[1734008443621,2.1605,231.37,231.33,2.1608]
[1734008443827,2.38,231.39,231.3,1.3701]
[1734008444222,2.1604,231.38,231.3,1.3701]
[1734008445121,2.1604,231.38,231.33,2.1607]
[1734008445928,2.38,231.39,231.33,2.1607]
[1734008446230,2.1605,231.37,231.33,2.1607]
[1734008446432,4.5605,231.37,231.33,2.1607]
[1734008447126,2.1606,231.36,231.33,2.1607]
[1734008450131,2.1606,231.36,231.3,1.3701]
[1734008450828,4.5605,231.37,231.33,2.1608]
[1734008454434,2.1606,231.36,231.33,2.1608]
[1734008456541,4.5605,231.37,231.33,2.1608]
[1734008459543,2.4,231.37,231.3,1.3701]
[1734008459747,2.4,231.37,231.35,2.1606]
[1734008460644,2.4,231.37,231.3,1.3701]
[1734008460645,4.5605,231.37,231.34,2.1607]
[1734008466145,2.1605,231.37,231.34,2.1607]
[1734008468652,2.1605,231.37,231.33,2.1608]
[1734008469449,2.1608,231.34,231.31,2.1609]
[1734008469650,2.1608,231.34,231.3,1.3701]
[1734008470451,2.4,231.34,231.3,1.3701]
[1734008470759,2.4,231.34,231.22,23.71060684]
[1734008470760,8.14081996,231.32,231.25,8.14081996]
[1734008470955,2.1612,231.29,231.26,87.83878736]
[1734008471152,8.14081996,231.32,231.26,85.67728736]
[1734008471686,8.14081996,231.32,231.26,90.86573295]
[1734008473080,8.14081996,231.3,231.23,1.3713]
[1734008473380,2.1615,231.27,231.23,3.533]
[1734008473573,2.36,231.33,231.26,8.14081996]
[1734008474271,4.5209,231.33,231.28,2.1612]
[1734008474463,2.36,231.33,231.26,8.14081996]
[1734008475481,2.36,231.33,231.25,5.13211637]
[1734008475693,2.161,231.31,231.27,2.1614]
[1734008476662,2.161,231.31,231.28,2.1613]
[1734008476968,2.36,231.36,231.3,8.14081996]
[1734008477262,2.36,231.37,231.34,2.1607]
[1734008477664,2.36,231.37,231.33,10.30161996]
[1734008478669,4.5205,231.37,231.33,10.30161996]
[1734008480066,4.5205,231.37,231.33,8.14081996]
[1734008481266,1.1116,231.49,231.35,8.14081996]
[1734008481465,8.14081996,231.44,231.37,8.14081996]
[1734008481659,2.36,231.43,231.37,8.14081996]
[1734008481870,2.1602,231.4,231.37,8.14081996]
[1734008482169,2.36,231.43,231.35,8.14081996]
[1734008482365,2.1604,231.38,231.35,8.14081996]
[1734008483566,2.1604,231.38,231.3,2.8501]
[1734008483567,8.14081996,231.38,231.3,10.99091996]
[1734008483869,2.1606,231.35,231.3,10.99091996]
[1734008484076,2.36,231.37,231.3,10.99091996]
[1734008484770,2.36,231.37,231.32,8.14081996]
[1734008485474,2.1606,231.36,231.32,8.14081996]
[1734008486970,2.1607,231.35,231.32,8.14081996]
[1734008488673,2.36,231.37,231.34,8.14081996]
[1734008488879,2.36,231.39,231.36,8.14081996]
[1734008489179,2.36,231.41,231.36,8.14081996]
[1734008489773,2.1604,231.39,231.36,8.14081996]
[1734008489974,2.36,231.41,231.35,8.14081996]
[1734008490776,2.1603,231.39,231.35,8.14081996]
[1734008490974,2.1603,231.39,231.35,10.30141996]
[1734008491784,2.1603,231.39,231.35,8.14081996]
[1734008491977,8.14081996,231.4,231.31,1.3089]
[1734008492182,8.14081996,231.4,231.32,8.14081996]
[1734008492479,2.1605,231.37,231.32,10.30161996]
[1734008492982,2.1605,231.37,231.33,8.14081996]
[1734008493284,8.14081996,231.4,231.33,8.14081996]
[1734008493480,2.1606,231.36,231.33,8.14081996]
[1734008494082,2.36,231.35,231.3,1.4517]
[1734008494286,2.36,231.35,231.28,8.14081996]
[1734008494985,2.1608,231.33,231.28,8.14081996]
[1734008495174,2.36,231.35,231.28,8.14081996]
[1734008495581,2.36,231.35,231.27,10.30211996]
[1734008496585,2.161,231.31,231.27,10.30211996]
[1734008498088,2.1608,231.33,231.28,2.1613]
[1734008498281,2.36,231.35,231.28,2.1613]
[1734008498586,2.161,231.32,231.28,2.1613]
[1734008499496,8.14081996,231.34,231.26,2.1614]
[1734008499688,2.36,231.35,231.24,2.6899]
[1734008499689,8.14081996,231.32,231.24,2.6899]
[1734008500192,2.1614,231.27,231.24,2.6899]
[1734008500687,2.36,231.29,231.24,1.3329]
[1734008500688,8.14081996,231.28,231.24,1.3329]
[1734008500885,8.14081996,231.28,231.21,5.12812115]
[1734008501490,2.1616,231.25,231.21,7.29002115]
[1734008501683,8.14081996,231.3,231.22,8.14081996]
[1734008501888,8.14081996,231.3,231.23,8.14081996]
[1734008501889,2.1615,231.26,231.23,8.14081996]
[1734008502282,2.3,231.29,231.23,8.14081996]
[1734008502786,2.1615,231.26,231.23,8.14081996]
[1734008502985,8.14081996,231.28,231.21,13.26894111]
[1734008503187,2.1617,231.25,231.21,13.26894111]
[1734008503486,8.14081996,231.26,231.18,1.3778]
[1734008504082,8.14081996,231.24,231.18,1.3778]
[1734008504288,2.3,231.23,231.18,1.3778]
[1734008504593,2.162,231.21,231.18,1.3778]
[1734008504785,2.3,231.23,231.18,1.3778]
[1734008505193,2.1619,231.22,231.18,1.3778]
[1734008505387,2.3,231.23,231.17,8.14081996]
[1734008505693,8.14081996,231.22,231.15,8.14081996]
[1734008506393,2.1621,231.2,231.16,2.1624]
[1734008507297,2.1621,231.2,231.16,7.22466277]
[1734008507487,2.1621,231.2,231.16,5.06226277]
[1734008507686,8.14081996,231.22,231.16,5.06226277]
[1734008507891,8.14081996,231.22,231.12,2.746]
[1734008508190,8.14081996,231.2,231.12,10.88681996]
[1734008509687,2.1623,231.17,231.13,2.1627]
[1734008509890,4.4623,231.17,231.13,2.1627]
[1734008510590,2.3,231.17,231.14,2.1626]
[1734008511092,4.462,231.21,231.16,2.1624]
[1734008511293,4.462,231.21,231.17,8.14081996]
[1734008512088,2.162,231.2,231.17,8.14081996]
[1734008512288,8.14081996,231.2,231.13,5.1327797]
[1734008512487,8.14081996,231.2,231.13,13.27359966]
[1734008512893,2.3,231.21,231.15,10.30331996]
[1734008513699,2.1622,231.19,231.15,10.30331996]
[1734008513898,2.1622,231.19,231.15,2.1625]
[1734008516300,2.1623,231.18,231.14,2.1626]
[1734008519098,2.3,231.21,231.16,2.1624]
[1734008519396,2.3,231.21,231.17,8.14081996]
[1734008520403,2.1621,231.2,231.17,8.14081996]
[1734008520603,2.1621,231.2,231.16,2.1624]
[1734008522402,2.3,231.21,231.16,2.1624]
[1734008522601,2.3,231.21,231.13,5.1327797]
[1734008522799,2.3,231.21,231.14,2.1626]
[1734008522998,8.14081996,231.2,231.13,8.14081996]
[1734008523204,2.3,231.21,231.12,2.746]
[1734008523205,2.3,231.21,231.15,8.14081996]
[1734008523401,2.3,231.21,231.12,8.04202614]
[1734008523606,2.3,231.21,231.16,8.14081996]
[1734008524006,2.1621,231.19,231.16,8.14081996]
[1734008524203,2.3,231.21,231.16,8.14081996]
[1734008525105,2.1622,231.19,231.16,8.14081996]
[1734008525511,47.421,231.33,231.17,2.1623]
[1734008525706,2.1618,231.23,231.18,8.14081996]
[1734008525906,47.421,231.33,231.2,8.14081996]
[1734008525907,8.14081996,231.26,231.2,8.14081996]
[1734008526210,2.1617,231.24,231.2,8.14081996]
[1734008526409,2.1617,231.24,231.19,2.162]
[1734008526410,2.3,231.25,231.19,10.30281996]
[1734008527012,2.1619,231.22,231.18,2.1622]
[1734008527214,2.3,231.25,231.18,8.14081996]
[1734008527605,2.1615,231.26,231.18,8.14081996]
[1734008527805,2.1615,231.26,231.2,8.14081996]
[1734008528006,2.3,231.27,231.22,8.14081996]
[1734008528216,2.1614,231.27,231.23,2.1617]
[1734008529912,2.1612,231.3,231.25,2.1616]
[1734008530215,10.44081996,231.31,231.24,8.14081996]
[1734008530609,2.1613,231.28,231.24,8.14081996]
[1734008530807,8.14081996,231.27,231.2,8.14081996]
[1734008531112,8.14081996,231.25,231.17,9.53881996]
[1734008531313,2.1619,231.22,231.17,11.70111996]
[1734008532008,8.14081996,231.25,231.17,11.70111996]
[1734008532215,8.14081996,231.23,231.15,10.30331996]
[1734008532519,8.14081996,231.21,231.13,8.14081996]
[1734008532717,2.1623,231.18,231.13,8.14081996]
[1734008533113,2.1623,231.18,231.14,2.1626]
[1734008533415,2.1621,231.2,231.13,8.14081996]
[1734008533809,10.44081996,231.21,231.15,2.1625]
[1734008534035,4.462,231.21,231.15,8.14081996]
[1734008534419,4.462,231.21,231.16,2.1623]
[1734008534816,2.1619,231.22,231.17,8.14081996]
[1734008536616,2.1619,231.22,231.18,2.1622]
[1734008537415,2.1619,231.22,231.17,10.30311996]
[1734008538048,2.1619,231.22,231.18,2.1622]
[1734008538347,2.3,231.27,231.19,8.14081996]
[1734008538535,2.3,231.28,231.22,2.1618]
[1734008538972,2.1616,231.25,231.21,8.14081996]
[1734008539256,2.1616,231.25,231.21,10.30271996]
[1734008539442,2.1616,231.25,231.21,2.1619]
[1734008539852,8.14081996,231.25,231.17,2.1623]
[1734008540050,8.14081996,231.25,231.17,10.30311996]
[1734008540448,2.1619,231.22,231.17,10.30311996]
[1734008540641,2.3,231.28,231.19,8.14081996]
[1734008540850,2.3,231.28,231.21,8.14081996]
[1734008541050,4.4613,231.28,231.21,8.14081996]
[1734008541253,4.4613,231.28,231.24,2.1616]
[1734008541254,2.1613,231.28,231.24,2.1616]
[1734008541494,2.1613,231.28,231.23,8.14081996]
[1734008541657,10.30211996,231.28,231.21,8.14081996]
[1734008541947,10.30211996,231.28,231.23,2.1617]
[1734008542653,2.1614,231.27,231.23,2.1617]
[1734008543874,8.14081996,231.28,231.19,8.14081996]
[1734008544047,2.1617,231.25,231.21,2.1619]
[1734008544313,8.14081996,231.26,231.21,2.1619]
[1734008544447,2.162,231.21,231.17,2.1622]
[1734008544689,2.162,231.21,231.16,1.3773]
[1734008545082,2.162,231.2,231.17,2.1623]
[1734008546155,2.162,231.2,231.14,8.14081996]
[1734008546454,2.162,231.2,231.16,2.1624]
[1734008549554,2.1621,231.19,231.16,2.1624]
[1734008550758,2.1621,231.2,231.16,2.1624]
[1734008552156,2.1621,231.2,231.17,2.1623]
[1734008552356,2.1619,231.22,231.17,2.1623]
[1734008552560,8.14081996,231.24,231.17,2.1623]
[1734008553062,2.1619,231.22,231.17,2.1623]
[1734008553860,2.162,231.21,231.17,2.1623]
[1734008554061,2.3,231.28,231.2,8.14081996]
[1734008554260,2.3,231.28,231.21,8.14081996]
[1734008554455,8.14081996,231.28,231.22,2.1618]
[1734008555458,8.14081996,231.28,231.23,2.1617]
[1734008555861,8.14081996,231.3,231.23,2.1617]
[1734008556154,2.1613,231.28,231.23,2.1617]
[1734008556365,8.14081996,231.3,231.23,2.1617]
[1734008556560,8.14081996,231.28,231.23,2.1617]
[1734008557760,2.1615,231.27,231.23,2.1617]
[1734008558757,2.1615,231.26,231.23,2.1617]
[1734008559864,8.14081996,231.28,231.21,8.14081996]
[1734008559865,2.1613,231.28,231.21,8.14081996]
[1734008560657,2.1613,231.28,231.24,2.1617]
[1734008560865,8.14081996,231.29,231.21,8.14081996]
[1734008561065,8.14081996,231.29,231.25,2.1616]
[1734008561460,10.30201996,231.29,231.25,2.1616]
[1734008562063,2.1612,231.29,231.25,2.1616]
[1734008562561,2.161,231.32,231.28,2.1613]
[1734008563150,8.14081996,231.35,231.29,2.1611]
[1734008563555,8.14081996,231.35,231.27,8.14081996]
[1734008564149,2.1608,231.34,231.3,2.1611]
[1734008565035,2.1608,231.33,231.3,2.1611]
[1734008565435,8.14081996,231.37,231.29,8.14081996]
[1734008565629,2.1606,231.35,231.29,8.14081996]
[1734008566435,8.14081996,231.37,231.31,2.161]
[1734008567432,2.1607,231.35,231.31,2.161]
[1734008568733,2.1605,231.36,231.33,2.1608]
[1734008568926,8.14081996,231.37,231.29,8.14081996]
[1734008569636,2.1607,231.35,231.31,2.1609]
[1734008569837,8.14081996,231.35,231.27,8.14081996]
[1734008570537,2.1607,231.34,231.3,2.1611]
[1734008574438,2.1609,231.33,231.3,2.1611]
[1734008575743,8.14081996,231.33,231.26,2.32]
[1734008575946,8.14081996,231.33,231.25,8.14081996]
[1734008576644,8.14081996,231.31,231.25,8.14081996]
[1734008577245,2.1613,231.28,231.25,10.30241996]
[1734008577548,2.1613,231.28,231.25,2.1616]
[1734008577845,2.1615,231.27,231.23,3.563]
[1734008579041,2.1615,231.27,231.23,1.4013]
[1734008579247,2.1615,231.27,231.24,2.1616]
[1734008579948,2.32,231.33,231.23,9.54211996]
[1734008580145,2.1611,231.3,231.27,2.1614]
[1734008581250,2.1611,231.3,231.26,2.1615]
[1734008581845,8.14081996,231.32,231.25,8.14081996]
[1734008581846,2.1613,231.29,231.25,2.1616]
[1734008582148,8.14081996,231.3,231.23,9.54211996]
[1734008582443,8.14081996,231.3,231.23,1.4013]
[1734008582647,2.1614,231.27,231.23,1.4013]
[1734008582848,8.14081996,231.32,231.25,8.14081996]
[1734008583545,2.1612,231.3,231.26,2.1615]
[1734008583747,8.14081996,231.3,231.23,1.4013]
[1734008584050,2.1614,231.27,231.24,2.1617]
[1734008584647,2.1616,231.25,231.22,1.3135]
[1734008585147,8.14081996,231.28,231.22,1.3135]
[1734008585350,8.14081996,231.28,231.23,2.1617]
[1734008585351,2.1615,231.26,231.23,2.1617]
[1734008585543,8.14081996,231.28,231.22,1.3135]
[1734008585942,8.14081996,231.28,231.22,3.4753]
[1734008586349,2.1615,231.26,231.24,8.14081996]
[1734008586544,2.1615,231.26,231.23,2.1617]
[1734008586949,2.1613,231.28,231.25,2.1615]
[1734008587146,8.14081996,231.3,231.24,8.14081996]
[1734008588049,2.1613,231.29,231.26,2.1615]
[1734008588245,8.14081996,231.3,231.24,8.14081996]
[1734008589754,2.1613,231.28,231.25,2.1616]
[1734008589955,8.14081996,231.3,231.22,1.3135]
[1734008590155,2.1612,231.29,231.25,2.1615]
[1734008590657,8.14081996,231.3,231.22,1.3135]
[1734008590859,2.1614,231.28,231.24,2.1616]
[1734008591155,2.1614,231.28,231.22,9.45431996]
[1734008591156,8.14081996,231.3,231.22,9.45431996]
[1734008591955,2.1616,231.26,231.22,11.61611996]
[1734008592355,8.14081996,231.28,231.17,2.32]
[1734008592555,2.1617,231.25,231.21,2.1619]
[1734008592754,2.1617,231.25,231.19,8.14081996]
[1734008592951,2.1617,231.25,231.2,2.162]
[1734008593161,2.1617,231.25,231.19,8.14081996]
[1734008593358,8.14081996,231.24,231.16,93.86196694]
[1734008593554,2.24,231.23,231.16,8.14081996]
[1734008594159,2.1619,231.22,231.19,2.1621]
[1734008594355,2.24,231.23,231.19,2.1621]
[1734008595560,2.1619,231.22,231.19,2.1621]
[1734008595960,2.24,231.23,231.16,13.25736682]
[1734008596462,2.24,231.23,231.16,8.14081996]
[1734008597560,2.162,231.21,231.18,2.1622]
[1734008598056,2.24,231.23,231.18,2.1622]
[1734008598261,2.1619,231.22,231.18,2.1622]
[1734008599152,2.1619,231.22,231.18,8.14081996]
[1734008599356,2.1619,231.22,231.19,2.1621]
[1734008599756,2.24,231.23,231.15,6.56774664]
[1734008599757,2.162,231.21,231.15,6.56774664]
[1734008599953,10.38081996,231.23,231.15,1.3723]
[1734008600362,2.1622,231.19,231.15,3.5348]
[1734008601957,2.1623,231.18,231.15,2.1625]
[1734008602263,8.14081996,231.21,231.14,8.14081996]
[1734008602961,8.14081996,231.21,231.14,10.30341996]
[1734008604061,2.1623,231.18,231.14,10.30341996]
[1734008604963,2.1623,231.17,231.14,10.30341996]
[1734008605571,8.14081996,231.17,231.06,4.1391]
[1734008605781,2.24,231.18,231.06,2.8223]
[1734008605782,8.14081996,231.13,231.06,2.8223]
[1734008605971,8.14081996,231.11,231.06,1.4351]
[1734008606167,2.1631,231.09,231.06,1.4351]
[1734008606570,8.14081996,231.09,231.02,5.15615148]
[1734008606781,8.14081996,231.09,231.02,13.29697144]
[1734008607366,2.1632,231.08,231.03,2.1636]
[1734008607972,2.4694,231.23,231.0,3.4843]
[1734008607973,8.14081996,231.05,231.0,3.4843]
[1734008608677,10.30421996,231.05,231.01,2.1638]
[1734008610681,2.1636,231.04,231.0,1.3205]
[1734008610975,8.14081996,231.03,230.95,8.14081996]
[1734008611575,10.30451996,231.03,230.97,2.1642]
[1734008611773,8.14081996,231.03,230.97,2.1642]
[1734008612281,8.14081996,231.03,230.96,2.1643]
[1734008612577,8.14081996,231.01,230.94,1.3602]
[1734008612778,2.1641,230.98,230.94,1.3602]
[1734008613380,2.1643,230.96,230.91,2.1647]
[1734008614279,8.14081996,230.97,230.9,8.14081996]
[1734008614477,10.30501996,230.97,230.92,2.1646]
[1734008614677,8.14081996,230.99,230.92,8.14081996]
[1734008615381,2.1641,230.98,230.93,2.1645]
[1734008616578,4.404,231.0,230.94,8.14081996]
[1734008616978,10.38081996,231.01,230.94,8.14081996]
[1734008617778,12.54461996,231.01,230.97,2.1642]
[1734008618084,10.38081996,231.01,230.89,7.31643918]
[1734008618278,10.38081996,231.01,230.92,8.14081996]
[1734008618479,2.164,230.99,230.94,2.1645]
[1734008618879,2.164,230.99,230.94,10.30531996]
[1734008619785,2.164,230.99,230.94,2.1645]
[1734008620084,2.1642,230.98,230.93,2.1646]
[1734008620274,8.14081996,230.97,230.89,7.31643918]
[1734008620479,8.14081996,230.97,230.89,15.45725914]
[1734008620782,2.1645,230.95,230.9,2.1648]
[1734008621177,2.22,230.96,230.89,8.14081996]
[1734008621385,2.1644,230.95,230.91,2.1647]
[1734008621576,2.22,230.96,230.91,2.1647]
[1734008621877,2.22,231.02,230.95,8.14081996]
[1734008622081,10.36081996,231.02,230.95,8.14081996]
[1734008622483,12.52461996,231.02,230.98,2.1641]
[1734008622791,8.14081996,231.04,230.97,8.14081996]
[1734008623090,2.22,231.05,231.01,8.14081996]
[1734008623385,2.22,231.05,230.99,8.14081996]
[1734008623882,4.3834,231.05,231.0,2.1638]
[1734008624684,4.3834,231.05,231.01,2.1638]
[1734008624884,2.1634,231.05,231.01,2.1638]
[1734008625483,8.14081996,231.06,231.01,2.1638]
[1734008625679,8.14081996,231.06,230.99,8.14081996]
[1734008625881,2.22,231.07,231.03,2.1636]
[1734008626875,4.3833,231.07,231.02,2.1637]
[1734008627484,4.3833,231.07,231.03,2.1636]
[1734008627791,2.22,231.07,230.99,8.14081996]
[1734008627992,2.1634,231.06,230.99,8.14081996]
[1734008628487,2.1634,231.06,231.02,2.1637]
[1734008629186,2.22,231.07,230.99,8.14081996]
[1734008629385,2.22,231.07,231.01,8.14081996]
[1734008629892,2.22,231.07,231.03,2.1636]
[1734008630389,4.3833,231.07,231.03,2.1636]
[1734008630791,2.1633,231.07,231.03,2.1636]
[1734008630991,8.14081996,231.06,231.01,2.1638]
[1734008631392,8.14081996,231.06,230.99,13.41645164]
[1734008632193,2.1635,231.05,231.01,2.1638]
[1734008632384,8.14081996,231.06,231.01,2.1638]
[1734008633795,2.1635,231.05,231.01,2.1638]
[1734008634590,2.1635,231.05,230.99,13.41645164]
[1734008634591,8.14081996,231.06,230.99,13.41645164]
[1734008634786,8.14081996,231.06,231.02,2.1637]
[1734008635791,10.30421996,231.06,231.02,2.1637]
[1734008637892,2.1632,231.09,231.03,2.1636]
[1734008638104,2.22,231.09,231.01,8.14081996]
[1734008638393,2.22,231.12,231.03,8.14081996]
[1734008638598,10.36081996,231.12,231.04,1.4328]
[1734008639193,2.163,231.1,231.06,2.1633]
[1734008639996,2.1628,231.13,231.05,8.14081996]
[1734008640193,10.36081996,231.15,231.07,8.14081996]
[1734008640698,2.1627,231.13,231.07,8.14081996]
[1734008640892,10.30351996,231.13,231.07,8.14081996]
[1734008641098,10.30351996,231.13,231.09,2.1631]
[1734008641298,8.14081996,231.13,231.05,2.6763]
[1734008641497,8.14081996,231.11,231.05,2.6763]
[1734008641694,8.14081996,231.11,231.05,4.8397]
[1734008642000,2.1631,231.09,231.05,4.8397]
[1734008642299,2.1631,231.09,231.05,3.488]
[1734008642494,8.14081996,231.11,231.05,1.3246]
[1734008642690,2.163,231.1,231.06,2.1633]
[1734008643096,2.1631,231.09,231.06,2.1633]
[1734008643295,8.14081996,231.11,231.06,2.1633]
[1734008643601,2.1634,231.06,231.04,1.4328]